Cogmind - Beta 15 @@@ ROGUE MODE // 2025.10.02 @ 04:57:53 Player: shapeshifter Result: Destroyed by Enhanced Grunt with Neutron Cannon Performance ------------- Evolutions (4) 2000 Regions Visited (11) 2200 Robots Destroyed (76) 380 Value Destroyed (2539) 2539 Prototype IDs (241) 4820 Alien Tech Used (0) 0 Bonus (4497) 4497 TOTAL SCORE: 16436 Bonus ------- Follower Combat Kills 97 Entered DSFs 500 Aligned with FarCom 300 Met Data Miner 300 Used Data Conduit 3000 Acquired ECA 300 Cogmind --------- Core Integrity 0/850 Matter 88/300 Energy 98/100 System Corruption 1% Temperature Cool (0) Movement Core (50) Location -6/Data Miner Parts ------- > --- POWER (1) -------- (None) > --- PROPULSION (4) --- (None) > --- UTILITY (6) ------ (None) > --- WEAPON (4) ------- (None) > --- INVENTORY (5) ---- (None) Peak State ------------ > --- POWER ------------ F-cell Engine > --- PROPULSION ------- Improved Carbon-fiber Leg Flexi-carbon Leg Flexi-carbon Leg Flexi-carbon Leg > --- UTILITY ---------- High-capacity Storage Unit Improved Sensor Array Improved Signal Interpreter Advanced Melee Analysis Suite Improved Core Shielding Improved Light Armor Plating > --- WEAPON ----------- XL Autogun Array > --- INVENTORY -------- Titanium Leg Improved Cryofiber Web Gravity Neutralizer Encrypted Comm Array Nanoactuators Transmission Jammer Phase Shifter Graphene Brace Improved Hacking Suite Authchip [Propulsion] Authchip [Propulsion] Authchip [Propulsion] Heavy Machine Gun Heavy Machine Gun Molecular Deconstructor Greatsword [Rating: 90] Favorites ----------- Power Deuterium Engine Engine Deuterium Engine Power Core Fission Core Propulsion Flexi-carbon Leg Treads Light Treads Leg Flexi-carbon Leg Wheel Wheel Hover Unit Aerolev Unit Utility High-capacity Storage Unit Device Transmission Jammer Storage High-capacity Storage Unit Processor Advanced Melee Analysis Suite Hackware Hacking Suite Protection Hardened Medium Armor Plating Weapon Heavy Machine Gun Energy Cannon Beam Cannon Ballistic Gun Heavy Machine Gun Ballistic Cannon AWS/Autocannon Launcher Grenade Launcher Special Weapon Molecular Deconstructor Slashing Weapon Greatsword Build | -11 -10 -10 -10 -9 -8 -7 -7 -6 -6 -6 -6 ------- Run | Yrd Mat Min Exi Min Mat Fac DSF Fac Low Low Dat Slots Evolved 8 | . . . . . 4 2 . 2 . . . Power . | . . . . . . . . . . . . Propulsion 2 | . . . . . 1 1 . . . . . Utility 4 | . . . . . 2 1 . 1 . . . Weapon 2 | . . . . . 1 . . 1 . . . Parts Attached 76 | 6 8 4 1 5 20 1 6 20 . 1 4 Power 9 | . 1 1 . . 3 . 2 2 . . . Engine 7 | . 1 1 . . 3 . 1 1 . . . Core 2 | . . . . . . . 1 1 . . . Reactor . | . . . . . . . . . . . . Propulsion 21 | 2 2 1 . 2 8 . . 5 . 1 . Treads 2 | 2 . . . . . . . . . . . Leg 9 | . . . . . 4 . . 4 . 1 . Wheel 8 | . 2 1 . 2 3 . . . . . . Hover 2 | . . . . . 1 . . 1 . . . Flight . | . . . . . . . . . . . . Utility 23 | 2 2 . . 2 4 1 3 8 . . 1 Device 6 | 1 . . . 1 . . 1 2 . . 1 Storage 3 | 1 2 . . . . . . . . . . Processor 5 | . . . . . 1 . 1 3 . . . Hackware 2 | . . . . . 1 . . 1 . . . Protection 7 | . . . . 1 2 1 1 2 . . . Artifact . | . . . . . . . . . . . . Weapon 23 | 2 3 2 1 1 5 . 1 5 . . 3 Energy Gun . | . . . . . . . . . . . . Energy Cannon 1 | . 1 . . . . . . . . . . Ballistic Gun 18 | 2 2 2 1 . 4 . 1 4 . . 2 Ballistic Cannon 1 | . . . . . 1 . . . . . . Launcher 1 | . . . . 1 . . . . . . . Special Weapon 1 | . . . . . . . . . . . 1 Impact Weapon . | . . . . . . . . . . . . Slashing Weapon 1 | . . . . . . . . 1 . . . Piercing Weapon . | . . . . . . . . . . . . Special Melee Weapon . | . . . . . . . . . . . . Unidentified Prototypes 8 | . . . . . 3 . . 3 . . 2 Corrupted Parts 1 | . . . . 1 . . . . . . . System Corruption 6 | . . . . 6 . . . . . . . Parts Lost 15 | . 2 1 . 1 3 . 2 . . . 6 Power 2 | . . 1 . . . . 1 . . . . Propulsion 8 | . 1 . . 1 2 . . . . . 4 Utility 2 | . . . . . . . 1 . . . 1 Weapon 3 | . 1 . . . 1 . . . . . 1 Highest Loss Streak 6 | . 1 1 . 1 1 . 1 . . . 6 To Critical Strikes . | . . . . . . . . . . . . Average Backups 13 | 5 10 16 17 13 13 12 15 13 14 14 13 Power 1 | 1 . . 2 2 . 1 . . . . . Propulsion 1 | 2 1 2 1 . 2 . . 1 2 1 . Utility 6 | . 2 6 8 7 5 7 8 6 8 9 8 Weapon 3 | 1 5 7 4 3 3 3 4 3 1 2 3 Tool/Special . | . . . . . . . . . . . . Unused Backups 64 | 4 4 2 11 1 17 . 6 5 2 4 8 Power 8 | 2 . . 1 . 2 . . 1 . 2 . Propulsion 11 | 2 . . 2 . 6 . . . 1 . . Utility 29 | . 1 1 3 1 5 . 6 3 . 2 7 Weapon 13 | . 3 1 5 . 4 . . . . . . Tool/Special 3 | . . . . . . . . 1 1 . 1 Average Slot Usage (%) 95 | . 94 100 100 97 96 88 83 98 100 99 66 Engine 7 | . 9 14 14 14 8 7 1 . . 6 5 Core 1 | . . . . . . . 5 6 5 . . Treads 3 | . 22 . . . . . . . . . . Leg 11 | . . . . . 4 30 30 26 26 26 20 Wheel 11 | . 4 28 28 25 20 . . . . . . Device 6 | . 14 14 14 . . . 5 6 13 10 5 Storage 9 | . 14 14 14 14 9 7 7 6 6 6 5 Processor 6 | . . . . . 8 7 7 10 13 13 11 Hackware 2 | . . . . . 7 7 7 5 . . . Protection 7 | . . . . 13 10 11 8 8 6 8 9 Ballistic Gun 24 | . 27 28 28 27 25 15 . 25 26 25 1 Peak Build Rating 90 | 6 8 11 19 23 54 44 72 81 77 77 90 Average Rating 40 | 4 7 10 14 20 36 43 69 73 73 75 59 On Entrance 36 | . 6 8 11 19 22 39 44 72 77 77 65 Naked Turns 12 | . . . . . . . . . . . 12 Heaviest Build 120 | 9 48 52 52 59 110 58 120 119 77 78 73 Greatest Support 80 | 40 40 26 26 26 51 68 68 80 80 80 78 Greatest Overweight (x) 6 | . 1 1 1 3 6 . 1 1 . 1 2 Average Overweight (x) . | . . 1 1 2 1 . . . . . . Largest Inventory Capacity 20 | 8 20 20 20 20 20 20 20 20 20 20 20 Average Capacity 19 | 7 16 20 20 20 20 20 20 20 20 20 18 Most Carried 20 | 8 17 20 20 20 20 19 20 20 20 20 20 Average Carried 17 | 5 11 17 19 19 19 18 19 19 18 19 16 Final Capacity 20 | 8 20 20 20 20 20 20 20 20 20 20 5 Final Carried 20 | 4 17 17 20 20 20 18 20 20 20 20 . Class Distribution -------------------- 45% | Mutant 31% | Skirmisher 13% | Gunner 7% | Tank Dominant Class ---------------- Mutant | -10/Materials Mutant | -10/Mines Mutant | -10/Exiles Mutant | -9/Mines Skirmisher | -8/Materials Skirmisher | -7/Factory Gunner | -7/DSF Gunner | -6/Factory Skirmisher | -6/Lower Caves Skirmisher | -6/Lower Caves Gladiator | -6/Data Miner Resources | -11 -10 -10 -10 -9 -8 -7 -7 -6 -6 -6 -6 ----------- Run | Yrd Mat Min Exi Min Mat Fac DSF Fac Low Low Dat Matter Collected 2943 | 292 327 40 10 65 895 . 352 359 113 366 124 Remotely . | . . . . . . . . . . . . Salvage Created 2881 | 109 621 . . 44 987 . 488 239 12 204 177 Parts 174 | 8 47 . . 11 56 . 21 14 4 4 9 Haulers Intercepted 4 | . 1 . . . 3 . . . . . . Recyclers Shooed 3 | . 2 . . . 1 . . . . . . Parts Field Recycled . | . . . . . . . . . . . . Retrieved Matter . | . . . . . . . . . . . . Parts Self-Destructed 5 | . . . . . . . . . . 5 . Prevented . | . . . . . . . . . . . . Kills | -11 -10 -10 -10 -9 -8 -7 -7 -6 -6 -6 -6 ------- Run | Yrd Mat Min Exi Min Mat Fac DSF Fac Low Low Dat Combat Hostiles Destroyed 58 | . 14 . . 4 16 . 13 4 1 4 2 Guns 41 | . 14 . . . 15 . 1 4 1 4 2 Cannons 13 | . . . . . 1 . 12 . . . . AOE 4 | . . . . 4 . . . . . . . Classes Destroyed 17 | 2 4 . . . 5 . 3 1 1 1 . Worker 4 | . . . . . 3 . . 1 . . . Tunneler 4 | 2 . . . 1 1 . . . . . . Hauler 4 | . 1 . . . 3 . . . . . . Recycler 3 | 1 2 . . . . . . . . . . Operator 1 | . . . . . 1 . . . . . . Watcher 2 | . 1 . . . 1 . . . . . . Swarmer 13 | . 6 . . 4 3 . . . . . . Grunt 24 | . 8 . . . 6 . 8 . . 2 . Brawler 1 | . . . . . . . 1 . . . . Duelist 1 | . . . . . . . 1 . . . . Sentry 7 | . . . . . 5 . . 2 . . . Specialist 2 | . . . . . . . 2 . . . . Hunter 2 | . . . . . 1 . . 1 . . . Programmer 2 | . . . . . . . . 1 . 1 . Heavy 2 | . . . . . 1 . 1 . . . . Enhanced Grunt 2 | . . . . . . . . . . . 2 Master Thief 1 | . . . . . . . . . 1 . . Mutant 1 | . . . . . . . . . . 1 . Best Kill Streak 9 | 2 4 . . 4 4 . 9 2 1 2 1 Combat Bots Only 9 | . 3 . . 4 3 . 9 1 1 2 1 Max Kills in Single Turn 4 | 1 1 . . 4 2 . 1 2 1 1 1 Gunslinging . | . . . . . . . . . . . . Exploded 4 | . . . . 4 . . . . . . . Melee . | . . . . . . . . . . . . Uniques/NPCs Destroyed . | . . . . . . . . . . . . Combat | -11 -10 -10 -10 -9 -8 -7 -7 -6 -6 -6 -6 -------- Run | Yrd Mat Min Exi Min Mat Fac DSF Fac Low Low Dat Hostile Shots Fired 354 | . 94 . . 6 67 . 37 34 38 21 57 Missed 92 | . 30 . . 1 15 . 10 8 13 3 12 Hits 262 | . 64 . . 5 52 . 27 26 25 18 45 Melee 7 | . . . . . . . . . 5 2 . Projectile 255 | . 64 . . 5 52 . 27 26 20 16 45 Critical Strikes 5 | . . . . . 3 . 1 . . 1 . Part Disruptions 5 | . . . . . . . . . . 4 1 Damage Taken 5111 | . 653 53 . 83 715 . 498 451 292 265 2101 Core 1099 | . 120 . . 13 73 . 15 92 . 36 750 Absorbed by Shields . | . . . . . . . . . . . . Redirected to Shielding 78 | . . . . . . . 25 8 . 6 39 Core Remaining (%) 82 | 100 . . . 46 86 . 97 . . . . Volleys Fired 225 | 8 88 . . 6 62 . 4 15 5 16 21 Largest 4 | 2 2 . . 2 3 . 2 4 4 4 1 Hottest 120 | 40 80 . . 40 75 . 50 120 120 120 60 Shots Fired 568 | 16 164 . . 11 185 . 36 56 20 59 21 Gun 533 | 16 163 . . 10 183 . 8 56 20 59 18 Cannon 31 | . 1 . . . 2 . 28 . . . . Launcher 1 | . . . . 1 . . . . . . . Special 3 | . . . . . . . . . . . 3 Kinetic 563 | 16 163 . . 10 185 . 36 56 20 59 18 Thermal 1 | . 1 . . . . . . . . . . Explosive 1 | . . . . 1 . . . . . . . Electromagnetic . | . . . . . . . . . . . . Robot Hit Streak 28 | 8 10 . . 3 28 . 15 7 2 5 6 Robot Miss Streak 12 | 1 5 . . 2 12 . 1 4 4 6 6 Penetration Max . | . . . . . . . . . . . . Secondary Targets 2 | . . . . . 2 . . . . . . Max Gunslinging Chain 1 | . . . . . 1 . . . . . . Autonomous 30 | . . . . . 2 . 28 . . . . Shots Hit Robots 329 | 12 105 . . 7 98 . 30 28 6 24 19 Core Hits 147 | 6 39 . . 6 41 . 16 11 3 9 16 Critical Kills 1 | . . . . . 1 . . . . . . Critical Parts Destroyed 2 | . 1 . . . 1 . . . . . . Critical Strikes 6 | . 1 . . . 3 . 2 . . . . Destroy 4 | . 1 . . . 3 . . . . . . Blast 2 | . . . . . . . 2 . . . . Melee Attacks 2 | . . . . . . . . 1 . . 1 Impact . | . . . . . . . . . . . . Slashing 2 | . . . . . . . . 1 . . 1 Piercing . | . . . . . . . . . . . . Sneak Attacks 1 | . . . . . . . . . . . 1 Combat Hostiles . | . . . . . . . . . . . . Follow-up Attacks . | . . . . . . . . . . . . Damage Inflicted 7377 | 128 974 . . 177 1795 . 2029 576 140 604 954 Guns 5021 | 128 957 . . 50 1612 . 104 576 140 604 850 Cannons 2125 | . 17 . . . 183 . 1925 . . . . Explosions 127 | . . . . 127 . . . . . . . Melee 104 | . . . . . . . . . . . 104 Ramming . | . . . . . . . . . . . . Kinetic 7129 | 128 957 . . 50 1795 . 2029 576 140 604 850 Thermal 17 | . 17 . . . . . . . . . . Explosive 127 | . . . . 127 . . . . . . . Electromagnetic . | . . . . . . . . . . . . Impact . | . . . . . . . . . . . . Slashing 104 | . . . . . . . . . . . 104 Piercing . | . . . . . . . . . . . . Highest Corruption 6 | . . . . 6 . . . 1 1 1 1 Average Corruption 1 | . . . . 6 . . . 1 1 1 1 Corruption Purged . | . . . . . . . . . . . . Corruption Blocked . | . . . . . . . . . . . . Effects 8 | . . . . . . . . 1 2 4 1 Message Errors 1 | . . . . . . . . . . 1 . Matter Fused 1 | . . . . . . . . . . 1 . Heat Flow Errors 3 | . . . . . . . . . 1 2 . Energy Discharges 1 | . . . . . . . . 1 . . . Data Loss (minor) 1 | . . . . . . . . . . . 1 Data Loss (major) 1 | . . . . . . . . . 1 . . Overload Shots . | . . . . . . . . . . . . Overflow Damage 104 | . . . . . . . 104 . . . . Projectiles 104 | . . . . . . . 104 . . . . Explosions . | . . . . . . . . . . . . Melee . | . . . . . . . . . . . . Knockbacks 7 | . . . . . . . 7 . . . . Impact . | . . . . . . . . . . . . Kinetic 6 | . . . . . . . 6 . . . . Secondary 1 | . . . . . . . 1 . . . . Self-Inflicted Damage 30 | . . . . 30 . . . . . . . Shots 1 | . . . . 1 . . . . . . . Rammed . | . . . . . . . . . . . . Targets Rammed . | . . . . . . . . . . . . Kicked . | . . . . . . . . . . . . Crushed . | . . . . . . . . . . . . Highest Temperature 342 | . 18 . . 28 342 . . 282 156 214 310 Average Temperature 90 | . 7 . . 11 101 . . 89 62 96 147 Received Heat Transfer 870 | . 198 . . 18 315 . 99 12 36 192 . Effects 6 | . . . . . 2 . . 2 . . 2 Energy Bleed 2 | . . . . . 1 . . . . . 1 Interference 3 | . . . . . . . . 2 . . 1 Matter Decay 1 | . . . . . 1 . . . . . . Siege Activations . | . . . . . . . . . . . . Martial Activations . | . . . . . . . . . . . . Shielding Activations . | . . . . . . . . . . . . Robots Disrupted . | . . . . . . . . . . . . Combat Hostiles . | . . . . . . . . . . . . Robots Corrupted . | . . . . . . . . . . . . Combat Hostiles . | . . . . . . . . . . . . Parts Fried . | . . . . . . . . . . . . Impact Corruptions . | . . . . . . . . . . . . Robots Melted . | . . . . . . . . . . . . Combat Hostiles . | . . . . . . . . . . . . Parts Melted . | . . . . . . . . . . . . Heat Transferred 37 | . 37 . . . . . . . . . . Parts Sabotaged . | . . . . . . . . . . . . Parts Stolen 5 | . . . . . . . . . 3 2 . Parts Stripped . | . . . . . . . . . . . . Power Chain Reactions . | . . . . . . . . . . . . Alert | -11 -10 -10 -10 -9 -8 -7 -7 -6 -6 -6 -6 ------- Run | Yrd Mat Min Exi Min Mat Fac DSF Fac Low Low Dat Maximum Alert Level 1 | . . . . . 1 . 1 . . . . Low Security (%) 95 | 100 100 100 . 100 91 100 73 100 . . . Level 1 4 | . . . . . 8 . 26 . . . . Level 2 . | . . . . . . . . . . . . Level 3 . | . . . . . . . . . . . . Level 4 . | . . . . . . . . . . . . Level 5 . | . . . . . . . . . . . . High Security . | . . . . . . . . . . . . Max Security . | . . . . . . . . . . . . Sterilizations 1 | . . . . . . . 1 . . . . Peak Influence 355 | 10 178 66 . 112 214 91 355 186 . . . Initial 186 | . . 66 . . . 91 66 186 . . . Average 62 | 1 46 29 . 18 90 91 169 66 . . . Influence Increases 1771 | 15 424 . . 172 601 4 309 151 . 95 . Destroy 0b10 Robot/C 1140 | . 280 . . 120 320 . 260 80 . 80 . Destroy 0b10 Robot/NC 90 | 15 20 . . 5 45 . . 5 . . . Destroy Leader 272 | . 64 . . 20 108 . 30 40 . 10 . Allied During Kill 10 | . . . . 5 . . . . . 5 . Trap Triggered on 0b10 10 | . . . . . . . . 10 . . . Successful Hack 55 | . . . . . 51 4 . . . . . Select Force Hacks 60 | . 30 . . . 30 . . . . . . Disable Machine 75 | . . . . 15 45 . . 15 . . . Destroy Structure 14 | . . . . 7 2 . 4 1 . . . Lose Combat Pursuer 45 | . 30 . . . . . 15 . . . . Influence Decreases 1771 | 15 254 170 . 172 400 110 49 491 15 95 . Entered New Map 418 | . . 104 . . . 110 29 169 6 . . Time Decay 1253 | 15 234 56 . 172 350 . . 322 9 95 . Lost Part 80 | . 20 10 . . 30 . 20 . . . . Lost Ally 20 | . . . . . 20 . . . . . . Squads Dispatched 14 | . 4 . . . 5 . 1 4 . . . Investigation 4 | . 2 . . . 2 . . . . . . Extermination 2 | . . . . . . . . 2 . . . Reinforcement 8 | . 2 . . . 3 . 1 2 . . . Assault . | . . . . . . . . . . . . Garrison . | . . . . . . . . . . . . Intercept . | . . . . . . . . . . . . Searches Triggered . | . . . . . . . . . . . . Construction Impeded 1 | . . . . . 1 . . . . . . Haulers Reinforced . | . . . . . . . . . . . . Active Scanning Responses . | . . . . . . . . . . . . Cargo Convoy Interrupts . | . . . . . . . . . . . . Stealth | -11 -10 -10 -10 -9 -8 -7 -7 -6 -6 -6 -6 --------- Run | Yrd Mat Min Exi Min Mat Fac DSF Fac Low Low Dat Distress Signals 4 | . . . . 1 3 . . . . . . Communications Jammed 7 | . . . . . . . . 6 1 . . Distress Signals 6 | . . . . . . . . 5 1 . . Times Spotted 88 | . 18 1 . 6 24 . 13 9 6 7 4 Peak Tracking Total 5 | . 4 . . 4 4 . 5 2 3 2 4 Tactical Retreats 2 | . 1 . . . . . 1 . . . . Traps | -11 -10 -10 -10 -9 -8 -7 -7 -6 -6 -6 -6 ------- Run | Yrd Mat Min Exi Min Mat Fac DSF Fac Low Low Dat Traps Triggered 6 | . 2 1 . . . . 1 2 . . . Indirectly . | . . . . . . . . . . . . Trap Hack Attempts . | . . . . . . . . . . . . Triggered . | . . . . . . . . . . . . Disarmed . | . . . . . . . . . . . . Reprogrammed 4 | . . . . . . . . 4 . . . Reused 1 | . . . . . . . . 1 . . . Traps Extracted . | . . . . . . . . . . . . Installed . | . . . . . . . . . . . . Triggered 1 | . . . . . . . . 1 . . . Machines | -11 -10 -10 -10 -9 -8 -7 -7 -6 -6 -6 -6 ---------- Run | Yrd Mat Min Exi Min Mat Fac DSF Fac Low Low Dat Machines Disabled 7 | . . . . 1 3 . . 1 1 1 . Max in Single Turn 1 | . . . . 1 1 . . 1 1 1 . Machines Repaired . | . . . . . . . . . . . . Machines Dismantled . | . . . . . . . . . . . . Machines Sabotaged . | . . . . . . . . . . . . Overloaded Fab Kills . | . . . . . . . . . . . . Hacking | -11 -10 -10 -10 -9 -8 -7 -7 -6 -6 -6 -6 --------- Run | Yrd Mat Min Exi Min Mat Fac DSF Fac Low Low Dat Machines Accessed 23 | . 5 1 2 . 8 1 . 3 . . 3 Terminals 14 | . 4 . . . 7 1 . 2 . . . Fabricators 1 | . . . . . . . . 1 . . . Repair Stations . | . . . . . . . . . . . . Recycling Units 2 | . 1 . . . 1 . . . . . . Scanalyzers . | . . . . . . . . . . . . Garrison Access . | . . . . . . . . . . . . Total Hacks 86 | . 20 1 2 . 28 1 . 8 . . 26 Successful 59 | . 6 1 2 . 17 1 . 6 . . 26 Failed 27 | . 14 . . . 11 . . 2 . . . Catastrophic 2 | . 1 . . . 1 . . . . . . Database Lockouts . | . . . . . . . . . . . . Manual 38 | . 14 . 1 . 18 . . 4 1 . . Terminals 52 | . 18 . . . 26 1 . 7 . . . Fabricators 1 | . . . . . . . . 1 . . . Repair Stations . | . . . . . . . . . . . . Recycling Units 4 | . 2 . . . 2 . . . . . . Scanalyzers . | . . . . . . . . . . . . Garrison Access . | . . . . . . . . . . . . Terminal Hacks 41 | . . 1 2 . 7 1 . 4 . . 26 Record 7 | . . . 1 . . . . . . . 6 Part Schematic 11 | . . . . . . . . . . . 11 Robot Schematic 6 | . . . . . . . . . . . 6 Prototype ID Bank 3 | . . . . . . . . . . . 3 Open Door 1 | . . 1 . . . . . . . . . Open DSF 1 | . . . . . . 1 . . . . . Level Access Points 1 | . . . . . 1 . . . . . . Branch Access Points 2 | . . . . . 1 . . 1 . . . Alert Level 2 | . . . . . 2 . . . . . . Locate Traps 2 | . . . . . 1 . . 1 . . . Reprogram Traps 1 | . . . . . . . . 1 . . . Hauler Manifests 1 | . . . . . 1 . . . . . . Registered Components 1 | . . . . . 1 . . . . . . Zone Layout 1 | . . . . . . . . 1 . . . Proto ID Catalog 1 | . . . 1 . . . . . . . . Fabricator Hacks 1 | . . . . . . . . 1 . . . Network Status 1 | . . . . . . . . 1 . . . Repair Station Hacks . | . . . . . . . . . . . . Recycling Unit Hacks 2 | . 1 . . . 1 . . . . . . Retrieve Components 2 | . 1 . . . 1 . . . . . . Scanalyzer . | . . . . . . . . . . . . Garrison Access Hacks . | . . . . . . . . . . . . Unauthorized Hacks 15 | . 5 . . . 9 . . 1 . . . Terminals 13 | . 4 . . . 8 . . 1 . . . Botnet 4 | . 1 . . . 2 . . 1 . . . Skim 9 | . 3 . . . 6 . . . . . . Fabricators . | . . . . . . . . . . . . Repair Stations . | . . . . . . . . . . . . Recycling Units 2 | . 1 . . . 1 . . . . . . Tunnel 2 | . 1 . . . 1 . . . . . . Scanalyzers . | . . . . . . . . . . . . Garrison Access . | . . . . . . . . . . . . Data Cores Recovered . | . . . . . . . . . . . . Used . | . . . . . . . . . . . . Hacking Detections 13 | . 4 . . . 6 . . 3 . . . Full Trace Events 2 | . 1 . . . 1 . . . . . . Feedback Events . | . . . . . . . . . . . . Feedback Blocked . | . . . . . . . . . . . . Robot Schematics Acquired 6 | . . . . . . . . . . . 6 Robots Built . | . . . . . . . . . . . . Authchips . | . . . . . . . . . . . . Time . | . . . . . . . . . . . . Total Robot Build Rating . | . . . . . . . . . . . . Part Schematics Acquired 11 | . . . . . . . . . . . 11 Parts Built . | . . . . . . . . . . . . Authchips . | . . . . . . . . . . . . Time . | . . . . . . . . . . . . Total Part Build Rating . | . . . . . . . . . . . . Parts Repaired . | . . . . . . . . . . . . Time . | . . . . . . . . . . . . Parts Recycled . | . . . . . . . . . . . . Recycled Matter . | . . . . . . . . . . . . Retrieved Matter . | . . . . . . . . . . . . Retrieved Components 13 | . 10 . . . 3 . . . . . . Parts Scanalyzed . | . . . . . . . . . . . . Part Schematics Acquired . | . . . . . . . . . . . . Parts Damaged . | . . . . . . . . . . . . Bothacking | -11 -10 -10 -10 -9 -8 -7 -7 -6 -6 -6 -6 ------------ Run | Yrd Mat Min Exi Min Mat Fac DSF Fac Low Low Dat Used RIF Installer . | . . . . . . . . . . . . Robots Hacked . | . . . . . . . . . . . . Non-combat . | . . . . . . . . . . . . Combat . | . . . . . . . . . . . . Robot Hacks Applied . | . . . . . . . . . . . . Relay Couplers Released . | . . . . . . . . . . . . Fabnet Peak Effective % . | . . . . . . . . . . . . Robots Rewired 4 | . . . . . . . . . . 4 . Allies Hacked . | . . . . . . . . . . . . Hacks Repelled . | . . . . . . . . . . . . Allies | -11 -10 -10 -10 -9 -8 -7 -7 -6 -6 -6 -6 -------- Run | Yrd Mat Min Exi Min Mat Fac DSF Fac Low Low Dat Total Allies 7 | . . . . 3 . . . . . 4 . Largest Group 4 | . . . . 3 2 . . . . 4 1 Highest-Rated Group 107 | . . . . 40 24 . . . . 107 29 Highest-Rated Ally 29 | . . . . 16 16 . . . . 29 29 Initial Warlord ECA Mod 36 | . . . . . . . . 9 9 9 9 Total Orders . | . . . . . . . . . . . . Ally Attacks 45 | . . . . 13 6 . . . . 18 8 Total Damage 536 | . . . . 138 37 . . . . 312 49 Kills 3 | . . . . 2 . . . . . 1 . Allies Corrupted . | . . . . . . . . . . . . Allies Melted 1 | . . . . . . . . . . 1 . Intel | -11 -10 -10 -10 -9 -8 -7 -7 -6 -6 -6 -6 ------- Run | Yrd Mat Min Exi Min Mat Fac DSF Fac Low Low Dat Active Infowar (turns) 4462 | 21 744 136 405 23 982 19 320 742 345 587 138 Sensors 1075 | . . . . . . . . 5 345 587 138 Seismic 1329 | 21 744 136 405 23 . . . . . . . Machine Analysis 1117 | . . . . . 982 19 116 . . . . Jamming 1713 | . . . . . . . 262 742 345 364 . Robot Analysis Total 151 | . . . . . . . . . . . 151 Derelict Logs Recovered 7 | . . 1 . 2 . . . . 3 1 . Drone Launches . | . . . . . . . . . . . . Drone Recoveries . | . . . . . . . . . . . . Exploration | -11 -10 -10 -10 -9 -8 -7 -7 -6 -6 -6 -6 ------------- Run | Yrd Mat Min Exi Min Mat Fac DSF Fac Low Low Dat Turns Passed 5540 | 150 744 136 405 929 985 19 320 761 345 587 159 Spaces Moved 3512 | 82 281 88 363 693 624 14 128 485 261 397 96 Core 41 | 21 . . . . . . . . . . 20 Treads 273 | 61 212 . . . . . . . . . . Legs 1374 | . . . . . 13 14 128 485 261 397 76 Wheels 1824 | . 69 88 363 693 611 . . . . . . Hover . | . . . . . . . . . . . . Flight . | . . . . . . . . . . . . Fastest Speed 50 | 50 105 105 105 105 101 130 130 120 120 120 50 Average Speed 125 | 131 155 105 105 122 116 130 197 134 120 120 106 Slowest Speed 260 | 160 240 105 105 145 200 130 200 200 120 190 260 Overloaded Moves . | . . . . . . . . . . . . Propulsion Burnouts . | . . . . . . . . . . . . Robots Hopped . | . . . . . . . . . . . . Potential Cave-ins . | . . . . . . . . . . . . Cave-ins Triggered . | . . . . . . . . . . . . Exploration Rate (%) 52 | 5 51 22 69 99 58 . 82 17 44 58 76 Regions Visited 11 Branch Regions 6 Pre-discovered Areas 37 | . 1 . 1 . 4 . . . 2 . 29 Known Exits Taken 5 | . . . . . 1 1 . 1 1 1 . Unknown Exits Taken 5 | 1 1 1 1 1 . . . . . . . Scrap Searched 6 | . . 1 . 1 . . . . 2 2 . Spaces Dug 1 | . . . . . . . . 1 . . . Terrain Destroyed 12 | . . . . 7 . . 4 1 . . . Melee 1 | . . . . . . . . 1 . . . Projectile 4 | . . . . . . . 4 . . . . AOE 7 | . . . . 7 . . . . . . . Terrain Rammed . | . . . . . . . . . . . . Walls Destroyed . | . . . . . . . . . . . . Machines Disabled . | . . . . . . . . . . . . Actions | -11 -10 -10 -10 -9 -8 -7 -7 -6 -6 -6 -6 --------- Run | Yrd Mat Min Exi Min Mat Fac DSF Fac Low Low Dat Total 4358 | 111 450 132 393 766 819 15 198 567 284 476 147 Wait 209 | . 45 30 2 55 39 . 27 2 6 3 . Move 3501 | 81 280 87 362 692 623 13 127 484 260 396 96 Hop . | . . . . . . . . . . . . Pick Up 144 | 12 21 6 13 3 35 . 18 12 8 8 8 Fast Attach 20 | 2 1 . . . 6 . . 10 . . 1 Attach 43 | 4 4 1 . 3 8 2 6 6 . 1 8 Detach 7 | . . . . . . . 2 2 . 2 1 Swap 37 | . 3 3 1 4 9 . 1 11 1 2 2 Drop 130 | 4 8 5 15 3 37 . 13 24 4 8 9 Fire 225 | 8 88 . . 6 62 . 4 15 5 16 21 Melee 2 | . . . . . . . . 1 . . 1 Ram . | . . . . . . . . . . . . Kick . | . . . . . . . . . . . . Crush . | . . . . . . . . . . . . Escape Stasis . | . . . . . . . . . . . . Rewire 40 | . . . . . . . . . . 40 . Trap . | . . . . . . . . . . . . Miscellaneous . | . . . . . . . . . . . . Route ------- -11/Scrapyard -10/Materials (discovered 3 exits: *Min x2 / [*Sub]) -10/Mines -10/Exiles -9/Mines (discovered 2 exits: *Mat x2) -8/Materials (discovered 3 exits: *Fac x3) -7/Factory (discovered 3 exits: Low x2 / DSF) -7/DSF -6/Factory (discovered 2 exits: *Low x2) -6/Lower Caves -6/Lower Caves (discovered 2 exits: *Fac / *Dat) -6/Data Miner (discovered 1 exit: [*Pro]) History --------- Turn | Location | Event 11 | -11/Scrapyard | Discovered new exit (range 16) 151 | -11/Scrapyard | Entered Materials 300 | -10/Materials | Build established: Mutant 506 | -10/Materials | Discovered new exit (range 6) 534 | -10/Materials | Discovered new exit (range 11) 798 | -10/Materials | Discovered new exit (range 16) 895 | -10/Materials | Entered Mines 906 | -10/Mines | Met a Derelict who couldn't figure out how to use a Trap Extractor 950 | -10/Mines | Assembled infested the area 956 | -10/Mines | Learned Materials non-interactive machine intel 963 | -10/Mines | Discovered new exit (range 5) 984 | -10/Mines | Met 8R-AWN 1031 | -10/Mines | Entered Exiles 1063 | -10/Exiles | Welcomed by 8R-AWN 1080 | -10/Exiles | Met EX-HEX 1143 | -10/Exiles | Met EX-DEC 1161 | -10/Exiles | Learned location of Zion (-7) 1268 | -10/Exiles | Met EX-BIN 1283 | -10/Exiles | Aligned with FarCom system 1284 | -10/Exiles | Given EX-Vault access code 1308 | -10/Exiles | Opened EX-Vault 1326 | -10/Exiles | Found AWS/Autocannon 1333 | -10/Exiles | Found Chronowheel 1336 | -10/Exiles | Found XL Autogun Array 1358 | -10/Exiles | Warned to stay clear of 0b10 Research branches 1422 | -10/Exiles | Discovered new exit (range 14) 1436 | -10/Exiles | Stole three prototypes: Chronowheel, XL Autogun Array, AWS/Autocannon 1436 | -10/Exiles | Entered Mines 1438 | -9/Mines | Core integrity fell below 50% 1445 | -9/Mines | Met a Derelict bent on vengeance 1513 | -9/Mines | Found a Scrap Suit stashed away for nefarious purposes 1579 | -9/Mines | Assisted by bots powering up and referring to "LRC-V3" 1614 | -9/Mines | Discovered new exit (range 8) 1857 | -9/Mines | Learned Materials emergency access door positions 1857 | -9/Mines | Discovered new exit (range 8) 2126 | -9/Mines | Learned Materials emergency access door positions 2310 | -9/Mines | Found Scrap Suit 2365 | -9/Mines | Entered Materials 2365 | -8/Materials | Accompanied by 2 allies 2365 | -8/Materials | Evolved 4 slots: Propulsion x1, Utility x2, Weapon x1 2367 | -8/Materials | Loaded intel: 39 non-interactive machine locations 2561 | -8/Materials | Discovered new exit (range 3) 2838 | -8/Materials | Build established: Skirmisher 3093 | -8/Materials | Learned 2 Storage zone layouts 3095 | -8/Materials | Learned Storage machine intel 3104 | -8/Materials | Learned location of 1 exit from Lower Caves 3225 | -8/Materials | Identified exit to Factory 3350 | -8/Materials | Entered Factory 3350 | -7/Factory | Evolved 2 slots: Propulsion x1, Utility x1 3351 | -7/Factory | Identified exit to Lower Caves 3352 | -7/Factory | FarCom data flow suspended 3369 | -7/Factory | Identified exit to DSF 3369 | -7/Factory | Entered DSF 3434 | -7/DSF | Additional patrols routed to DSF 3622 | -7/DSF | Discovered new exit (range 15) 3648 | -7/DSF | Sterilization system engaged 3668 | -7/DSF | Ambient heat levels rising (+10) 3672 | -7/DSF | Destroyed 9 combat bots 3683 | -7/DSF | Ambient heat levels rising (+10) 3689 | -7/DSF | Entered Factory 3689 | -6/Factory | Evolved 2 slots: Utility x1, Weapon x1 3899 | -6/Factory | Identified exit to Lower Caves 4166 | -6/Factory | Build established: Gunner 4450 | -6/Factory | Entered Lower Caves 4450 | -6/Lower Caves | Spotted VU-USD(f) 4450 | -6/Lower Caves | Spotted FE-GIA(f) 4451 | -6/Lower Caves | Identified exit to Lower Caves 4451 | -6/Lower Caves | AWS/Autocannon stolen by Master Thief 4451 | -6/Lower Caves | Chronowheel stolen by Master Thief 4451 | -6/Lower Caves | Spotted 19-QTP(f) 4452 | -6/Lower Caves | Encountered a Master Thief 4452 | -6/Lower Caves | Encountered a Master Thief 4452 | -6/Lower Caves | Encountered a Master Thief 4459 | -6/Lower Caves | Authchip [Propulsion] stolen by Master Thief 4461 | -6/Lower Caves | Destroyed 19-QTP(f) 4466 | -6/Lower Caves | Met a Warlord Commander 4467 | -6/Lower Caves | Learned location of Warlord (-5) 4468 | -6/Lower Caves | Warlord Commander delivered Encrypted Comm Array 4488 | -6/Lower Caves | Found Encrypted Comm Array 4506 | -6/Lower Caves | Learned location of 1 exit from Factory 4675 | -6/Lower Caves | Encountered a Warlord checkpoint 4685 | -6/Lower Caves | Learned Factory trap positions 4724 | -6/Lower Caves | Build established: Skirmisher 4725 | -6/Lower Caves | Spotted B-75 Beast 4770 | -6/Lower Caves | Acquired the password to a Derelict Tinkerer's latest research 4785 | -6/Lower Caves | Found Prototype Special Weapon 4795 | -6/Lower Caves | Entered another Lower Caves area 4804 | -6/Lower Caves | Attacked by a delusional Derelict stockpiling Unaware 4900 | -6/Lower Caves | Encountered a Warlord checkpoint 4909 | -6/Lower Caves | Discovered new exit (range 9) 4917 | -6/Lower Caves | Identified exit to Factory 4952 | -6/Lower Caves | Lost 3 allies 5057 | -6/Lower Caves | Learned Factory security intel 5321 | -6/Lower Caves | Spotted KC-J5J(f) 5321 | -6/Lower Caves | Spotted G9-7HD(f) 5322 | -6/Lower Caves | Encountered a Master Thief 5322 | -6/Lower Caves | Encountered a Master Thief 5324 | -6/Lower Caves | Authchip [Propulsion] stolen by Master Thief 5324 | -6/Lower Caves | Lgt. Antimatter Reactor stolen by Master Thief 5348 | -6/Lower Caves | Discovered new exit (range 11) 5361 | -6/Lower Caves | Identified exit to Data Miner 5382 | -6/Lower Caves | Entered Data Miner 5382 | -6/Data Miner | Accompanied by 1 ally 5382 | -6/Data Miner | Discovered new exit (range 6) 5405 | -6/Data Miner | Met Data Miner 5428 | -6/Data Miner | Learned location of Section 7 (-2) 5428 | -6/Data Miner | Acquired the access code to Warlord's prototype stash 5447 | -6/Data Miner | Received God Mode back door access code from Data Miner 5465 | -6/Data Miner | Interfaced with the Data Conduit 5471 | -6/Data Miner | Identified Molecular Deconstructor 5520 | -6/Data Miner | Released all parts (6) 5525 | -6/Data Miner | Core integrity fell below 50% 5537 | -6/Data Miner | Core integrity fell below 20% 5541 | -6/Data Miner | Destroyed by Enhanced Grunt with Neutron Cannon Last Messages --------------- 05515_ Imp. Carbon-fiber Leg destroyed. 05515_ Molecular Deconstructor destroyed. 05517_ Flexi-carbon Leg destroyed. 05519_ Acquired XL Autogun Array. 05520_ Released F-cell Engine. 05520_ Released Adv. Melee Analysis Suite. 05520_ Released Hcp. Storage Unit. 05520_ Released Imp. Sensor Array. 05520_ Released Imp. Signal Interpreter. 05520_ Released Imp. Core Shielding. 05520_ Dropped Greatsword. 05521_ Acquired XL Autogun Array. 05525_ Acquired 38 matter. XL Autogun Array falls apart. 05528_ Acquired Prototype Ballistic Gun. 05529_ Identified XL Autogun Subcomponent. 05530_ Enhanced Grunt destroyed. 05536_ Dropped XL Autogun Subcomponent. 05540_ System corrupted: Component data lost. 05541_ Acquired 86 matter. Map ----- +----------------------------------------------------+ | | | | | | | | | | | | | | | | | | | | | | | | | | | | | | | ???????????????????????????????????????????????? | | ???????????????????????????????????????????????? | | ???????????????????????????????????????????????? | | ???????????????????????????????????????????????? | | ?????????????????????????????????????####??????? | | ??????##################???#???????### #??????? | | ?????""""""""""!""! /; ### #?#????## #??????? | | ????"""""""" [!*![! # # # # ## < ##??????? | | ????""""""""" !!!!! g ######?? | | ????""""" !=!!! g ! #?? | | ???""""""" [ @ ! !! #?? | | ???"""""" =[[ = ]%* #?? | | ???""""""" [* ! ##?? | | ????"""""" " """""#####??? | | ????"""""" """"###############??????? | | ????""""""" """""###????????????????????? | | ?????"""""""" "#####??????????????????????? | | ??????######"## "#??????????????????????????? | | ???????????#"### "#??????????????????????????? | | ???????????#"### "#??????????????????????????? | | ???????????#"?# "#??????????????????????????? | | ?????????????## "#??????????????????????????? | | ?????????????# "#??????????????????????????? | | ?????????????### "#??????????????????????????? | | ???????????????# "##?????????????????????????? | | ??????????????## ""#?????????????????????????? | | ?????????????## ""#?????????????????????????? | | ?????????"##"#"X ""#?????????????????????????? | | ?????????"""""" "####??????????????????????? | | ?????????#""""" X"""""??????????????????????? | | ??????????##"#"X "##"#??????????????????????? | | ???????????#?## X""""#??????????????????????? | | ??????????????## "##"#??????????????????????? | | ???????????????#######?????????????????????????? | | ???????????????????????????????????????????????? | +----------------------------------------------------+ Best States ------------- Heat Dissipation 37 Energy Generation 19 Energy Capacity 500 Matter Stores 300 Matter Capacity 300 Sight Range 16 Robot Scan Range 15 Terrain Scan Density 10 Jamming Range 12 Additional Mass Support 12 Corruption Containment 8 Armor Coverage 375 Resistance: TH 10 Core Shielding 30 Propulsion Shielding 66 Melee Speed Boost 30 Evasion (%) 55 Targeting Accuracy 8 Melee Accuracy 8 Recoil Reduction 2 Offensive Hacking 12 Authchip Count 5 Item Schematics ----------------- Combat Drone Bay | -6/Data Miner | Free Lgt. Regenerative Plating | -6/Data Miner | Free Cld. Nuclear Pulse Thruster | -6/Data Miner | Free Prc. Matter Filter | -6/Data Miner | Free Enh. Force Rifle | -6/Data Miner | Free Imp. Antigrav System | -6/Data Miner | Free Adv. Power Amplifier | -6/Data Miner | Free Hvy. Disruptor Cannon | -6/Data Miner | Free Imp. Force Booster | -6/Data Miner | Free Q-thruster | -6/Data Miner | Free Hvy. Linear Accelerator | -6/Data Miner | Free Robot Schematics ------------------ H-66 Slayer | -6/Data Miner | Free E-15 Imp | -6/Data Miner | Free I-47 Archangel | -6/Data Miner | Free C-35 Carver | -6/Data Miner | Free Y-64 Sentinel | -6/Data Miner | Free M-30 Cleanser | -6/Data Miner | Free Fabricated ------------ Nothing Repaired ---------- Nothing Alien Tech Used ----------------- None Achievements -------------- None Challenges ------------ None Game ------ Seed AlphaShiftRail Manual? 0 Play Time 01:09:13 Cumulative 343.4 hours Start 2025.10.02 @ 01:36:44 End 2025.10.02 @ 04:57:53 Sessions 5 Manual Loads 0 Difficulty Rogue Special Mode None Game No. 454 Rogue 454 Adventurer 0 Explorer 0 Win Type - Total 11 Types 6/0/1/2/1/0/1/0/0/0 Lore% 87 Gallery% 82 Achievement% 69 Wizard Run 0 Options --------- Layout 0 ASCII 0 Keyboard 0 Movement Mouse Keybinds 0 Fullscreen 1 Font 18/X11 Map View 76x50 Zoom Use 0% Tactical HUD 1 Map Filters NONE Filters NONE Steam 1 RUN: e717072e-7a70-4c2d-8654-f5ad884fc514